bitfinex-derivatives/quotes_SOLF0:USTF0_20250212
["timestamp","ask_amount","ask_price","bid_price","bid_amount"]
[1739358125209,0.03904529,196.52,196.49,9.02094456]
[1739358127815,0.03904529,196.52,196.48,0.03281634]
[1739358128019,9.05998985,196.52,196.48,0.03281634]
[1739358130519,0.03904529,196.52,196.48,0.03281634]
[1739358131822,0.03904529,196.52,196.49,9.02094456]
[1739358133518,0.03904529,196.52,196.48,0.03281634]
[1739358138726,9.05998985,196.52,196.48,0.03281634]
[1739358139624,9.02094456,196.5,196.48,0.03281634]
[1739358140723,1.532,196.51,196.48,0.03281634]
[1739358148835,9.05998985,196.52,196.48,0.03281634]
[1739358149337,0.03904529,196.52,196.48,9.0537609]
[1739358149835,0.03904529,196.52,196.5,9.02094456]
[1739358152832,0.03904529,196.52,196.48,9.0537609]
[1739358153030,0.03904529,196.52,196.48,0.03281634]
[1739358153231,9.05998985,196.52,196.48,0.03281634]
[1739358154032,0.03904529,196.52,196.48,0.03281634]
[1739358154435,0.03904529,196.52,196.48,9.0537609]
[1739358157929,9.05998985,196.52,196.48,0.03281634]
[1739358159142,9.02094456,196.5,196.48,0.03281634]
[1739358159733,9.02094456,196.5,196.42,9.02094456]
[1739358159939,9.02094456,196.47,196.4,9.02094456]
[1739358160136,9.02094456,196.43,196.36,9.02094456]
[1739358160833,0.03483762,196.41,196.38,0.03845059]
[1739358161739,9.05578218,196.41,196.38,0.03845059]
[1739358163640,0.03483762,196.41,196.38,0.03845059]
[1739358166741,0.03483762,196.41,196.38,9.05939515]
[1739358167943,0.03483762,196.41,196.38,0.03845059]
[1739358169245,0.03483762,196.41,196.38,9.05939515]
[1739358175644,0.03483762,196.41,196.4,9.02094456]
[1739358176249,9.02094456,196.49,196.4,9.02094456]
[1739358176451,9.02094456,196.49,196.43,9.02094456]
[1739358177449,0.03278313,196.48,196.44,0.03500571]
[1739358181156,9.02094456,196.47,196.44,0.03500571]
[1739358181754,9.02094456,196.45,196.44,0.03500571]
[1739358183955,9.02094456,196.47,196.44,0.03500571]
[1739358184257,0.03278313,196.48,196.44,0.03500571]
[1739358187057,0.03278313,196.48,196.47,9.02094456]
[1739358188557,84.26755612,196.55,196.47,9.02094456]
[1739358188759,84.26755612,196.55,196.5,9.02094456]
[1739358189353,9.02094456,196.57,196.5,9.02094456]
[1739358189557,9.02094456,196.57,196.52,9.02094456]
[1739358189755,0.03632322,196.55,196.52,9.05370132]
[1739358190754,0.03632322,196.55,196.54,9.02094456]
[1739358194655,93.28850068,196.65,196.54,9.02094456]
[1739358194865,84.26755612,196.65,196.61,9.02094456]
[1739358195362,9.02094456,196.67,196.61,9.02094456]
[1739358195860,0.0321457,196.66,196.62,0.03684996]
[1739358206570,9.02094456,196.65,196.62,0.03684996]
[1739358210372,9.02094456,196.63,196.62,0.03684996]
[1739358210568,9.02094456,196.63,196.55,9.02094456]
[1739358210773,9.02094456,196.61,196.55,9.02094456]
[1739358211873,0.03687265,196.6,196.56,0.03612663]
[1739358212573,9.02094456,196.59,196.56,0.03612663]
[1739358213783,9.02094456,196.57,196.56,0.03612663]
[1739358214781,9.02094456,196.57,196.47,9.02094456]
[1739358214983,9.02094456,196.53,196.47,9.02094456]
[1739358215179,9.02094456,196.55,196.47,9.02094456]
[1739358215876,0.03246791,196.53,196.49,0.03260654]
[1739358216782,0.03246791,196.53,196.49,9.0535511]
[1739358216978,0.03246791,196.53,196.51,9.02094456]
[1739358218487,0.03246791,196.53,196.49,9.0535511]
[1739358219087,0.03246791,196.53,196.49,0.03260654]
[1739358220694,0.03246791,196.53,196.49,9.0535511]
[1739358221381,0.03246791,196.53,196.49,0.03260654]
[1739358222585,9.05341247,196.53,196.49,0.03260654]
[1739358226094,0.03246791,196.53,196.49,0.03260654]
[1739358227587,0.03246791,196.53,196.49,9.0535511]
[1739358234193,0.03246791,196.53,196.51,9.02094456]
[1739358238100,0.03246791,196.53,196.49,9.0535511]
[1739358242203,0.03246791,196.53,196.49,0.03260654]
[1739358242904,0.03246791,196.53,196.49,9.0535511]
[1739358246913,0.03246791,196.53,196.51,9.02094456]
[1739358250113,84.26755612,196.6,196.51,9.02094456]
[1739358250413,84.26755612,196.6,196.58,9.02094456]
[1739358251015,84.26755612,196.63,196.58,9.02094456]
[1739358251217,0.03450118,196.61,196.58,9.02094456]
[1739358251810,84.26755612,196.63,196.6,9.02094456]
[1739358252017,105.2795312,196.64,196.62,9.02094456]
[1739358252418,104.9113312,196.64,196.62,9.02094456]
[1739358253617,0.03255431,196.65,196.62,9.02094456]
[1739358253916,0.03255431,196.65,196.64,9.02094456]
[1739358254321,104.9113312,196.74,196.64,9.02094456]
[1739358254511,104.9113312,196.74,196.7,9.02094456]
[1739358255714,104.94547297,196.74,196.7,9.05861538]
[1739358256420,0.03414177,196.74,196.7,9.05861538]
[1739358260021,0.03414177,196.74,196.72,9.02094456]
[1739358261025,0.03414177,196.74,196.7,9.05861538]
[1739358263929,0.03414177,196.74,196.7,0.03767082]
[1739358264130,9.05508633,196.74,196.7,0.03767082]
[1739358264529,9.02094456,196.72,196.7,0.03767082]
[1739358265829,3.0569,196.73,196.7,0.03767082]
[1739358270232,0.03414177,196.74,196.7,9.05861538]
[1739358274632,0.03414177,196.74,196.7,0.03767082]
[1739358283337,9.02094456,196.72,196.7,0.03767082]
[1739358283536,9.02094456,196.72,196.66,9.02094456]
[1739358284541,9.02094456,196.72,196.64,9.02094456]
[1739358284742,9.02094456,196.72,196.67,0.03440447]
[1739358285040,0.03407795,196.7,196.67,0.03440447]
[1739358285740,0.03407795,196.7,196.68,9.02094456]
[1739358297048,0.03407795,196.7,196.67,0.03440447]
[1739358299048,0.03407795,196.7,196.68,9.02094456]
[1739358311455,0.03407795,196.7,196.67,0.03440447]
[1739358311954,9.05502251,196.7,196.67,0.03440447]
[1739358314058,0.03407795,196.7,196.67,0.03440447]
[1739358317661,0.03407795,196.7,196.68,9.02094456]
[1739358319463,0.03407795,196.7,196.67,0.03440447]
[1739358321456,9.05502251,196.7,196.67,0.03440447]
[1739358323466,9.05502251,196.7,196.62,9.02094456]
[1739358324360,9.05502251,196.7,196.64,0.0376873]
[1739358324565,9.02094456,196.68,196.64,0.0376873]
[1739358324767,1.5478,196.67,196.6,9.02094456]
[1739358324962,9.02094456,196.66,196.6,9.02094456]
[1739358325159,9.02094456,196.66,196.58,16.03856479]
[1739358325360,10.51514456,196.66,196.58,16.03856479]
[1739358325965,0.03332274,196.64,196.6,0.03601072]
[1739358326472,9.0542673,196.64,196.6,0.03601072]
[1739358327174,9.0542673,196.64,196.58,9.02094456]
[1739358327672,9.0542673,196.64,196.56,9.02094456]
[1739358327673,9.02094456,196.62,196.56,9.02094456]
[1739358328375,9.02094456,196.62,196.57,0.03712666]
[1739358330077,9.02094456,196.6,196.52,9.02094456]
[1739358330373,1.5745,196.59,196.52,9.02094456]
[1739358330576,3.0809,196.59,196.52,9.02094456]
[1739358331275,0.03229274,196.57,196.54,0.03659164]
[1739358333676,0.03229274,196.57,196.54,9.0575362]
[1739358344381,0.03229274,196.57,196.54,0.03659164]
[1739358364401,0.03229274,196.57,196.44,9.02094456]
[1739358364402,9.02094456,196.56,196.44,9.02094456]
[1739358364607,9.02094456,196.51,196.44,16.03856479]
[1739358364804,9.02094456,196.49,196.44,7.01762023]
[1739358365001,9.02094456,196.47,196.44,7.01762023]
[1739358365403,9.05468611,196.47,196.44,7.05412322]
[1739358367807,9.05468611,196.47,196.44,0.03650299]
[1739358369206,9.02094456,196.45,196.44,0.03650299]
[1739358369406,9.02094456,196.45,196.39,62.05783372]
[1739358369607,1.479,196.46,196.36,9.02094456]
[1739358369608,9.02094456,196.43,196.36,9.02094456]
[1739358370514,0.03810489,196.41,196.38,0.03891716]
[1739358372900,9.05904945,196.41,196.38,0.03891716]
[1739358373100,9.02094456,196.39,196.38,0.03891716]
[1739358373606,9.05904945,196.41,196.38,0.03891716]
[1739358374204,9.02094456,196.39,196.38,0.03891716]
[1739358375306,9.02094456,196.39,196.3,9.02094456]
[1739358375609,9.02094456,196.36,196.3,9.02094456]
[1739358376011,9.02094456,196.34,196.28,9.02094456]
[1739358376414,0.03878212,196.33,196.29,0.03899184]
[1739358377717,9.02094456,196.32,196.29,0.03899184]
[1739358377914,9.02094456,196.3,196.29,0.03899184]
[1739358378115,9.02094456,196.3,196.23,7.01762023]
[1739358378312,9.02094456,196.25,196.18,9.02094456]
[1739358378512,9.02094456,196.21,196.15,7.01762023]
[1739358378913,9.02094456,196.19,196.15,7.01762023]
[1739358379216,9.02094456,196.17,196.15,4.56942023]
[1739358379410,9.02094456,196.17,196.15,4.60516727]
[1739358380118,9.02094456,196.17,196.14,37.00948435]
[1739358380319,9.02094456,196.15,196.14,29.66488435]
[1739358380513,9.02094456,196.15,196.13,56.71712726]
[1739358381721,14.05011503,196.14,196.13,56.71712726]
[1739358382321,14.05011503,196.14,196.13,54.35382726]
[1739358382515,14.05011503,196.14,196.12,85.11217497]
[1739358383015,14.05011503,196.14,196.12,0.03648408]
[1739358383218,14.05011503,196.14,196.02,3.2105]
[1739358383415,14.05011503,196.11,196.02,3.2105]
[1739358383722,14.05011503,196.14,196.02,1.6293]
[1739358383924,196.51,196.18,196.02,1.6293]
[1739358383925,14.05011503,196.17,196.04,14.05011503]
[1739358384525,0.0349586,196.12,196.09,0.03266309]
[1739358384823,14.05011503,196.2,196.09,0.03266309]
[1739358386025,0.03806591,196.16,196.09,0.03266309]
[1739358386225,0.03806591,196.16,196.1,14.05011503]
[1739358386622,0.03806591,196.16,196.09,0.03266309]
[1739358386927,14.05011503,196.23,196.1,14.05011503]
[1739358387121,14.05011503,196.26,196.13,14.05011503]
[1739358387327,14.05011503,196.26,196.14,1.528]
[1739358388331,0.0343359,196.22,196.18,0.03873224]
[1739358388729,14.05011503,196.3,196.18,0.03873224]
[1739358388929,14.05011503,196.33,196.2,14.05011503]
[1739358389126,14.05011503,196.33,196.21,1.6252]
[1739358390023,0.03369387,196.29,196.25,0.03693967]
[1739358392827,14.05011503,196.36,196.25,0.03693967]
[1739358394038,195.0,196.38,196.26,14.05011503]
[1739358394339,0.03842862,196.32,196.27,1.4786]
[1739358395037,0.03842862,196.32,196.28,0.03686229]
[1739358395344,195.0,196.38,196.28,0.03686229]
[1739358395942,14.05011503,196.39,196.28,0.03686229]
[1739358396745,0.03856956,196.35,196.28,0.03686229]
[1739358397044,0.03856956,196.35,196.29,14.05011503]
[1739358397844,0.03856956,196.35,196.28,0.03686229]
[1739358400745,0.03856956,196.35,196.29,14.05011503]
[1739358401245,0.03856956,196.35,196.3,1.6088]
[1739358415662,0.03856956,196.35,196.31,8.96493688]
[1739358416461,0.03856956,196.35,196.33,8.96493688]
[1739358417062,8.96493688,196.43,196.33,8.96493688]
[1739358417261,8.96493688,196.45,196.35,8.96493688]
[1739358417663,8.96493688,196.45,196.37,8.96493688]
[1739358417963,8.96493688,196.43,196.37,8.96493688]
[1739358418162,8.96493688,196.43,196.35,8.96493688]
[1739358418365,0.03483397,196.42,196.38,0.03758791]
[1739358420260,0.03483397,196.42,196.39,8.96493688]
[1739358420561,0.03483397,196.42,196.41,8.96493688]
[1739358420760,0.03483397,196.42,196.39,8.96493688]
[1739358421059,0.03483397,196.42,196.38,0.03758791]
[1739358422265,0.03483397,196.42,196.39,8.96493688]
[1739358429469,0.03483397,196.42,196.38,0.03758791]
[1739358432973,0.03483397,196.42,196.39,8.96493688]
[1739358434977,0.03483397,196.42,196.38,0.03758791]
[1739358438280,8.96493688,196.41,196.38,0.03758791]
[1739358441781,0.03483397,196.42,196.38,0.03758791]
[1739358446983,0.03483397,196.42,196.39,8.96493688]
[1739358450894,0.03483397,196.42,196.41,8.96493688]
[1739358451291,8.96493688,196.49,196.41,8.96493688]
[1739358451491,8.96493688,196.49,196.43,8.96493688]
[1739358452391,0.03347209,196.48,196.44,0.03671975]
[1739358465604,0.03347209,196.48,196.45,8.96493688]
[1739358468702,0.03347209,196.48,196.47,8.96493688]
[1739358468903,8.96493688,196.55,196.47,8.96493688]
[1739358469100,8.96493688,196.55,196.49,8.96493688]
[1739358470103,0.03857175,196.54,196.5,0.0371111]
[1739358477204,0.03857175,196.54,196.51,8.96493688]
[1739358477408,0.03857175,196.54,196.53,8.96493688]
[1739358479606,0.03857175,196.54,196.51,8.96493688]
[1739358486214,0.03857175,196.54,196.53,8.96493688]
[1739358488517,8.96493688,196.61,196.53,8.96493688]
[1739358488715,8.96493688,196.61,196.55,8.96493688]
[1739358489711,0.03707794,196.6,196.56,0.03223872]
[1739358501924,0.03707794,196.6,196.57,8.96493688]
[1739358502123,0.03707794,196.6,196.59,8.96493688]
[1739358504630,203.96493688,196.67,196.59,8.96493688]
[1739358504828,8.96493688,196.67,196.61,8.96493688]
[1739358505831,0.03715315,196.66,196.62,0.03374031]
[1739358506430,0.03715315,196.66,196.63,8.96493688]
[1739358506631,0.03715315,196.66,196.65,8.96493688]
[1739358510531,8.96493688,196.73,196.65,8.96493688]
[1739358510732,8.96493688,196.73,196.67,8.96493688]
[1739358511634,0.03323955,196.72,196.68,0.03228028]
[1739358513738,0.03323955,196.72,196.69,8.96493688]
[1739358515035,0.03323955,196.72,196.68,0.03228028]
[1739358520441,8.96493688,196.71,196.68,0.03228028]
[1739358525652,0.03323955,196.72,196.68,0.03228028]
[1739358529154,8.96493688,196.71,196.68,0.03228028]
[1739358530755,8.96493688,196.69,196.68,0.03228028]
[1739358534657,8.96493688,196.71,196.68,0.03228028]
[1739358535253,0.03323955,196.72,196.68,0.03228028]
[1739358546861,0.03323955,196.72,196.69,8.96493688]
[1739358548263,0.03323955,196.72,196.68,0.03228028]
[1739358560972,0.03323955,196.72,196.69,8.96493688]
[1739358571887,0.03323955,196.72,196.71,8.96493688]
[1739358572083,93.7103143,196.81,196.71,8.96493688]
[1739358572287,84.74537742,196.81,196.76,8.96493688]
[1739358573185,84.74537742,196.81,196.77,0.03560808]
[1739358574285,10.12248104,196.82,196.77,0.03560808]
[1739358574683,8.96493688,196.83,196.77,0.03560808]
[1739358576587,8.96493688,196.81,196.77,0.03560808]
[1739358587993,8.96493688,196.83,196.77,0.03560808]
[1739358593203,10.43533688,196.85,196.78,8.96493688]
[1739358596403,10.43533688,196.85,196.77,0.03560808]
[1739358596908,8.96493688,196.83,196.77,0.03560808]
[1739358598208,8.96493688,196.81,196.77,0.03560808]
[1739358600310,8.96493688,196.83,196.77,0.03560808]
[1739358605510,10.43533688,196.85,196.78,8.96493688]
[1739358606212,95.1807143,196.85,196.78,8.96493688]
[1739358607113,95.1807143,196.85,196.77,0.03560808]
[1739358607814,8.96493688,196.81,196.77,0.03560808]
[1739358609417,8.96493688,196.79,196.77,0.03560808]
[1739358609815,8.96493688,196.79,196.7,8.96493688]
[1739358610020,8.96493688,196.77,196.7,8.96493688]
[1739358611008,0.03307267,196.75,196.72,0.03382612]
[1739358613215,0.03307267,196.75,196.72,8.998763]
[1739358613608,0.03307267,196.75,196.74,8.96493688]
[1739358617913,0.03307267,196.75,196.72,0.03382612]
[1739358618619,8.99800955,196.75,196.72,0.03382612]
[1739358619024,8.96493688,196.73,196.64,8.96493688]
[1739358619318,8.96493688,196.69,196.62,8.96493688]
[1739358619519,8.96493688,196.67,196.6,8.96493688]
[1739358620216,0.03513261,196.65,196.62,0.03423327]
[1739358620922,8.96493688,196.63,196.62,0.03423327]
[1739358622721,9.00006949,196.65,196.62,0.03423327]
[1739358634029,0.03513261,196.65,196.62,8.99917015]
[1739358638532,0.03513261,196.65,196.62,0.03423327]
[1739358638731,9.00006949,196.65,196.62,0.03423327]
[1739358646937,0.03513261,196.65,196.62,0.03423327]
[1739358649246,9.00006949,196.65,196.62,0.03423327]
[1739358670667,0.03513261,196.65,196.62,0.03423327]
[1739358672766,9.00006949,196.65,196.62,0.03423327]
[1739358676264,0.03513261,196.65,196.62,0.03423327]
[1739358677067,0.03513261,196.65,196.62,8.99917015]
[1739358677968,0.03513261,196.65,196.64,8.96493688]
[1739358678164,84.74537742,196.69,196.64,8.96493688]
[1739358679367,0.03280915,196.68,196.64,8.96493688]
[1739358679670,0.03280915,196.68,196.66,8.96493688]
[1739358682971,0.03280915,196.68,196.64,8.96493688]
[1739358683771,0.03280915,196.68,196.62,8.99917015]
[1739358683975,8.96493688,196.67,196.62,0.03423327]
[1739358685870,8.96493688,196.65,196.62,0.03423327]
[1739358686976,0.03280915,196.68,196.62,8.99917015]
[1739358688274,0.03280915,196.68,196.64,8.96493688]
[1739358693483,0.03280915,196.68,196.63,3.1639]
[1739358693881,8.96493688,196.67,196.62,0.03423327]
[1739358694683,8.96493688,196.65,196.62,0.03423327]
[1739358697082,8.96493688,196.67,196.62,0.03423327]
[1739358702787,0.03280915,196.68,196.62,8.99917015]
[1739358703385,0.03280915,196.68,196.64,8.96493688]
[1739358703987,0.03280915,196.68,196.66,8.96493688]
[1739358709786,0.03280915,196.68,196.64,8.96493688]
[1739358716096,0.03280915,196.68,196.66,8.96493688]
[1739358719392,8.96493688,196.75,196.66,8.96493688]
[1739358719594,1.5559,196.76,196.69,8.96493688]
[1739358720703,8.96493688,196.75,196.71,0.03535723]
[1739358722608,8.96493688,196.77,196.71,9.00029411]
[1739358723305,8.96493688,196.79,196.71,9.00029411]
[1739358723507,8.96493688,196.79,196.73,8.96493688]
[1739358725305,84.74537742,196.8,196.73,8.96493688]
[1739358726006,10.44623688,196.81,196.73,8.96493688]
[1739358726408,10.44623688,196.81,196.75,0.03451582]
[1739358728311,10.44623688,196.81,196.75,8.9994527]
[1739358728912,195.0,196.82,196.75,8.9994527]
[1739358729309,195.0,196.82,196.77,8.96493688]
[1739358731909,8.96493688,196.85,196.77,8.96493688]
[1739358732310,8.96493688,196.85,196.79,9.00164433]
[1739358732506,8.96493688,196.85,196.79,8.96493688]
[1739358732706,8.96493688,196.85,196.8,0.03276892]
[1739358739222,8.96493688,196.83,196.8,0.03276892]
[1739358739824,8.96493688,196.81,196.8,0.03276892]
[1739358740719,8.96493688,196.76,196.71,8.96493688]
[1739358741722,0.03225394,196.75,196.72,0.03385458]
[1739358743322,0.03225394,196.75,196.73,8.96493688]
[1739358749326,0.03225394,196.75,196.72,0.03385458]
[1739358750923,8.96493688,196.74,196.72,0.03385458]
[1739358764334,24.23493688,196.74,196.63,11.99143688]
[1739358764534,8.96493688,196.69,196.63,8.96493688]
[1739358765330,0.03745318,196.68,196.64,0.0344749]
[1739358768238,8.96493688,196.67,196.64,0.0344749]
[1739358773744,0.03745318,196.68,196.64,0.0344749]
[1739358781446,8.96493688,196.67,196.64,0.0344749]
[1739358781843,8.96493688,196.65,196.64,0.0344749]
[1739358785549,8.96493688,196.65,196.55,8.96493688]
[1739358785847,8.96493688,196.61,196.53,8.96493688]
[1739358788651,9.00244871,196.59,196.55,0.03653643]
[1739358789055,0.03751183,196.59,196.55,0.03653643]
[1739358789344,9.00244871,196.59,196.55,0.03653643]
[1739358799856,8.96493688,196.56,196.55,0.03653643]
[1739358804062,8.96493688,196.56,196.48,3.0989]
[1739358804258,8.96493688,196.53,196.48,3.0989]
[1739358805260,0.03802751,196.52,196.49,0.03729318]
[1739358808059,8.96493688,196.51,196.49,0.03729318]
[1739358811166,24.23493688,196.51,196.4,3.1696]
[1739358811363,8.96493688,196.45,196.4,3.1696]
[1739358812363,0.03242632,196.44,196.41,0.03825146]
[1739358815468,0.03242632,196.44,196.41,9.00318834]
[1739358816764,0.03242632,196.44,196.41,0.03825146]
[1739358818766,8.96493688,196.43,196.41,0.03825146]
[1739358823270,8.96493688,196.52,196.42,8.96493688]
[1739358823474,93.7103143,196.54,196.47,8.96493688]
[1739358823673,8.96493688,196.52,196.45,8.96493688]
[1739358823874,8.96493688,196.52,196.43,10.57443688]
[1739358824075,8.96493688,196.5,196.43,10.57443688]
[1739358824274,8.96493688,196.48,196.43,1.6095]
[1739358824475,8.96493688,196.46,196.45,0.03456729]
[1739358824678,8.96493688,196.46,196.39,8.96493688]
[1739358824876,8.96493688,196.46,196.44,0.03479777]
[1739358825178,8.96493688,196.45,196.44,0.03479777]
[1739358826979,24.23493688,196.45,196.35,8.96493688]
[1739358827181,8.96493688,196.38,196.33,10.57443688]
[1739358827576,8.96493688,196.38,196.33,1.6095]
[1739358828282,0.03252432,196.37,196.34,0.03542621]
[1739358833379,8.96493688,196.41,196.34,0.03542621]
[1739358833578,8.96493688,196.43,196.35,8.96493688]
[1739358833777,8.96493688,196.43,196.37,8.96493688]
[1739358834784,0.03387616,196.42,196.38,0.03538522]
[1739358837482,0.03387616,196.42,196.39,8.96493688]
[1739358842191,0.03387616,196.42,196.41,8.96493688]
[1739358842485,8.96493688,196.49,196.41,8.96493688]
[1739358842790,8.96493688,196.51,196.45,8.96493688]
[1739358843690,0.03398484,196.5,196.46,0.0374714]
[1739358845594,0.03398484,196.5,196.47,8.96493688]
[1739358848097,0.03398484,196.5,196.49,8.96493688]
[1739358848889,0.03398484,196.5,196.47,10.58023688]
[1739358851399,0.03398484,196.5,196.49,8.96493688]
[1739358851700,8.96493688,196.57,196.49,8.96493688]
[1739358851896,8.96493688,196.57,196.52,8.96493688]
[1739358852701,0.03429583,196.56,196.53,0.03772689]
[1739358853796,0.03429583,196.56,196.54,8.96493688]
[1739358860504,10.49593688,196.65,196.54,8.96493688]
[1739358860704,10.49593688,196.65,196.58,8.96493688]
[1739358861503,10.49593688,196.65,196.6,0.03618989]
[1739358861807,0.03820992,196.63,196.6,0.03618989]
[1739358863411,9.0031468,196.63,196.6,0.03618989]
[1739358869012,0.03820992,196.63,196.6,0.03618989]
[1739358870215,9.0031468,196.63,196.6,0.03618989]
[1739358872016,0.03820992,196.63,196.6,0.03618989]
[1739358875319,9.0031468,196.63,196.6,0.03618989]
[1739358875520,8.96493688,196.61,196.6,0.03618989]
[1739358877029,8.96493688,196.61,196.54,8.96493688]
[1739358877229,8.96493688,196.59,196.52,8.96493688]
[1739358877423,8.96493688,196.59,196.54,8.96493688]
[1739358877620,8.96493688,196.61,196.54,8.96493688]
[1739358878328,0.03755608,196.59,196.56,0.03526606]
[1739358878830,0.03755608,196.59,196.56,9.00020294]
[1739358882833,0.03755608,196.59,196.56,0.03526606]
[1739358884538,9.00249296,196.59,196.56,0.03526606]
[1739358884742,8.96493688,196.57,196.56,0.03526606]
[1739358901248,9.00249296,196.59,196.56,0.03526606]
[1739358901750,8.96493688,196.57,196.56,0.03526606]
[1739358905552,8.96493688,196.57,196.46,8.96493688]
[1739358905751,8.96493688,196.53,196.46,8.96493688]
[1739358906552,0.03301338,196.51,196.48,0.0372091]
[1739358907851,0.03301338,196.51,196.48,9.00214598]
[1739358908249,0.03301338,196.51,196.5,8.96493688]
[1739358909857,0.03301338,196.51,196.48,9.00214598]
[1739358910156,0.03301338,196.51,196.48,0.0372091]
[1739358912258,8.99795026,196.51,196.48,0.0372091]
[1739358913463,0.03301338,196.51,196.48,0.0372091]
[1739358917163,0.03301338,196.51,196.48,9.00214598]
[1739358918565,0.03301338,196.51,196.5,8.96493688]
[1739358919263,8.96493688,196.57,196.5,8.96493688]
[1739358919965,84.74537742,196.6,196.54,8.96493688]
[1739358920265,84.74537742,196.6,196.56,8.96493688]
[1739358920565,0.0344379,196.59,196.56,8.96493688]
[1739358923667,0.0344379,196.59,196.55,0.03523229]
[1739358923964,8.99937478,196.59,196.55,0.03523229]
[1739358928674,0.0344379,196.59,196.55,0.03523229]
[1739358929774,0.0344379,196.59,196.56,8.96493688]
[1739358929967,0.0344379,196.59,196.56,10.53483688]
[1739358930167,0.0344379,196.59,196.58,8.96493688]
[1739358930873,8.96493688,196.65,196.58,8.96493688]
[1739358931374,214.09032922,196.67,196.6,8.96493688]
[1739358931576,8.96493688,196.67,196.6,8.96493688]
[1739358932074,0.03913582,196.65,196.62,0.03214876]
[1739358932674,0.03913582,196.65,196.62,8.99708564]
[1739358934974,0.03913582,196.65,196.64,8.96493688]
[1739358938575,8.96493688,196.73,196.64,8.96493688]
[1739358938776,8.96493688,196.73,196.67,8.96493688]
[1739358939780,8.96493688,196.73,196.68,0.03685426]
[1739358940377,8.96493688,196.75,196.68,0.03685426]
[1739358942185,8.96493688,196.73,196.68,0.03685426]
[1739358942573,1.4823,196.77,196.68,0.03685426]
[1739358942574,8.96493688,196.75,196.68,0.03685426]
[1739358943273,8.96493688,196.73,196.68,0.03685426]
[1739358945183,8.96493688,196.79,196.71,8.96493688]
[1739358945378,19.03851086,196.83,196.76,8.96493688]
[1739358945880,8.96493688,196.83,196.78,8.96493688]
[1739358946084,8.96493688,196.83,196.78,9.00152519]
[1739358948482,8.96493688,196.85,196.78,9.00152519]
[1739358961384,8.96493688,196.81,196.78,0.03658831]
[1739358961584,8.96493688,196.79,196.72,8.96493688]
[1739358961787,8.96493688,196.77,196.7,8.96493688]
[1739358962891,0.03791555,196.75,196.72,0.0347596]
[1739358964186,0.03791555,196.75,196.72,8.99969648]
[1739358965889,0.03791555,196.75,196.74,8.96493688]
[1739358966987,1.5159,196.84,196.74,8.96493688]
[1739358967187,1.5159,196.84,196.78,8.96493688]
[1739358968192,8.96493688,196.85,196.8,8.96493688]
[1739358969094,8.96493688,196.87,196.8,8.96493688]
[1739358972792,8.96493688,196.87,196.82,8.96493688]
[1739358973394,10.53483688,196.89,196.82,8.96493688]
[1739358973894,10.53483688,196.89,196.84,0.03237326]
[1739358976897,8.96493688,196.93,196.86,8.96493688]
[1739358977092,93.7103143,196.95,196.88,8.96493688]
[1739358977499,93.7103143,196.95,196.9,0.03545443]
[1739358977903,8.96493688,196.93,196.9,0.03545443]
[1739358984100,1.584,196.94,196.9,0.03545443]
[1739358985098,8.96493688,196.95,196.9,9.00039131]
[1739358985402,8.96493688,196.99,196.92,8.96493688]
[1739358988698,84.74537742,197.0,196.94,8.96493688]
[1739358988899,8.96493688,197.01,196.9,0.03545443]
[1739358988900,8.96493688,197.01,196.96,8.96493688]
[1739358989500,8.96493688,197.01,196.97,0.03207556]
[1739358990298,8.96493688,197.03,196.97,0.03207556]
[1739358990503,8.96493688,197.03,196.98,8.96493688]
[1739358991003,95.2994143,197.05,196.98,8.96493688]
[1739358991803,8.96493688,197.03,196.98,8.96493688]
[1739358992899,10.55403688,197.05,196.98,8.96493688]
[1739358996805,8.96493688,197.05,196.98,8.96493688]
[1739359012717,8.96493688,196.99,196.97,0.03207556]
[1739359017209,84.74537742,197.06,196.98,8.96493688]
[1739359017414,140.16649641,197.07,197.04,8.96493688]
[1739359017608,106.12103231,197.07,197.06,8.96493688]
[1739359017808,80.94303874,197.07,197.06,8.96493688]
[1739359019117,8.96493688,197.13,197.06,8.96493688]
[1739359019318,11.96683688,197.15,197.08,8.96493688]
[1739359019715,11.96683688,197.15,197.1,0.03852727]
[1739359021419,27.20683688,197.15,197.1,0.03852727]
[1739359021620,8.96493688,197.13,197.1,0.03852727]
[1739359021820,18.2419,197.15,197.1,0.03852727]
[1739359021821,8.96493688,197.11,197.1,0.03852727]
[1739359022021,8.96493688,197.11,197.04,8.96493688]
[1739359022817,24.20493688,197.11,197.04,8.96493688]
[1739359023125,8.96493688,197.09,197.02,8.96493688]
[1739359023326,8.99891261,197.09,197.06,0.03775623]
[1739359023520,8.96493688,197.07,197.06,0.03775623]
[1739359023721,8.96493688,197.07,197.0,8.96493688]
[1739359023919,8.96493688,197.03,196.98,8.96493688]
[1739359024223,8.96493688,197.01,196.95,28.13527182]
[1739359024927,0.03213802,197.0,196.96,0.03713263]
[1739359027627,13.9252952,196.99,196.87,13.9252952]
[1739359028828,0.03703594,196.95,196.91,0.03560423]
[1739359032730,1.58883594,196.95,196.91,0.03560423]
[1739359036830,13.9252952,196.93,196.82,63.38767708]
[1739359038133,0.03622736,196.89,196.86,0.03526557]
[1739359054242,13.97539038,196.89,196.86,0.03526557]